[Event "The Elitserien 2024/25: round 1 - 3"]
[Site "Scandic Infra City, Kanalvagen 10, Upplands Vasby, Sweden"]
[Date "2024.10.06"]
[Round "3.12"]
[White "Religa, Marek"]
[Black "Ostlund, Joar"]
[Result "1-0"]
[TimeControl "90 minutes for 40 moves + 30 minutes for the rest of the game + 30 seconds per move from move one."]
[BlackTitle "FM"]
[WhiteFideId "1750208"]
[BlackFideId "1735020"]
[WhiteElo "2224"]
[BlackElo "2335"]

1. f4 {[%clk 01:30:25]} {[%emt 00:00:35]} d5 {[%clk 01:29:11]} {[%emt
00:01:48]} 2. Nf3 {[%clk 01:29:31]} {[%emt 00:01:25]} Bg4 {[%clk 01:28:13]}
{[%emt 00:01:27]} 3. e3 {[%clk 01:19:11]} {[%emt 00:10:49]} Nd7 {[%clk
01:25:29]} {[%emt 00:03:14]} 4. d4 {[%clk 01:18:35]} {[%emt 00:01:07]} e6
{[%clk 01:23:29]} {[%emt 00:02:30]} 5. c4 {[%clk 01:18:29]} {[%emt 00:00:37]}
Ngf6 {[%clk 01:19:49]} {[%emt 00:04:09]} 6. Nc3 {[%clk 01:16:32]} {[%emt
00:02:27]} Be7 {[%clk 01:07:41]} {[%emt 00:12:37]} 7. h3 {[%clk 01:15:36]}
{[%emt 00:01:27]} Bxf3 {[%clk 00:55:25]} {[%emt 00:12:46]} 8. Qxf3 {[%clk
01:16:05]} Bb4 {[%clk 00:52:56]} {[%emt 00:02:59]} 9. Bd3 {[%clk 01:16:12]}
{[%emt 00:00:23]} c5 {[%clk 00:50:45]} {[%emt 00:02:41]} 10. cxd5 {[%clk
01:15:16]} {[%emt 00:01:26]} Nxd5 {[%clk 00:44:12]} {[%emt 00:07:02]} 11. Bd2
{[%clk 01:15:04]} {[%emt 00:00:43]} cxd4 {[%clk 00:41:52]} {[%emt 00:02:49]} 12.
exd4 {[%clk 01:15:32]} {[%emt 00:00:03]} O-O {[%clk 00:40:45]} {[%emt
00:01:37]} 13. O-O {[%clk 01:13:28]} {[%emt 00:02:33]} N7f6 {[%clk 00:33:27]}
{[%emt 00:07:49]} 14. g4 {[%clk 01:08:36]} {[%emt 00:05:23]} Ne7 {[%clk
00:28:58]} {[%emt 00:04:58]} 15. Rad1 {[%clk 01:04:02]} {[%emt 00:05:03]} Rc8
{[%clk 00:25:02]} {[%emt 00:04:27]} 16. Kh1 {[%clk 01:01:29]} {[%emt 00:03:04]}
Bxc3 {[%clk 00:06:46]} {[%emt 00:18:46]} 17. bxc3 {[%clk 01:01:55]} {[%emt
00:00:03]} Qd5 {[%clk 00:07:08]} {[%emt 00:00:07]} 18. Qxd5 {[%clk 01:02:03]}
{[%emt 00:00:23]} Nfxd5 {[%clk 00:05:55]} {[%emt 00:01:43]} 19. c4 {[%clk
01:00:40]} {[%emt 00:01:53]} Nb6 {[%clk 00:06:23]} {[%emt 00:00:02]} 20. Bb4
{[%clk 00:52:45]} {[%emt 00:08:25]} Rfe8 {[%clk 00:05:32]} {[%emt 00:01:20]} 21.
Bc5 {[%clk 00:52:05]} {[%emt 00:01:11]} Na4 {[%clk 00:03:12]} {[%emt 00:02:50]}
22. Ba3 {[%clk 00:50:03]} {[%emt 00:02:32]} Nb6 {[%clk 00:02:55]} {[%emt
00:00:46]} 23. Bc5 {[%clk 00:31:24]} {[%emt 00:19:09]} Na4 {[%clk 00:03:24]}
{[%emt 00:00:02]} 24. Bxa7 {[%clk 00:29:10]} {[%emt 00:02:44]} Nb2 {[%clk
00:02:52]} {[%emt 00:01:02]} 25. Bc5 {[%clk 00:29:33]} {[%emt 00:00:06]} Nxd1
{[%clk 00:03:09]} {[%emt 00:00:13]} 26. Rxd1 {[%clk 00:30:01]} {[%emt
00:00:02]} Ng6 {[%clk 00:02:27]} {[%emt 00:01:13]} 27. Bd6 {[%clk 00:29:39]}
{[%emt 00:00:53]} Red8 {[%clk 00:01:49]} {[%emt 00:01:07]} 28. c5 {[%clk
00:29:40]} {[%emt 00:00:29]} b6 {[%clk 00:01:34]} {[%emt 00:00:45]} 29. Be4
{[%clk 00:26:57]} {[%emt 00:03:13]} bxc5 {[%clk 00:01:53]} {[%emt 00:00:11]} 30.
Bb7 {[%clk 00:25:57]} {[%emt 00:01:30]} Rxd6 {[%clk 00:02:04]} {[%emt
00:00:19]} 31. Bxc8 {[%clk 00:26:25]} {[%emt 00:00:02]} Nxf4 {[%clk 00:01:47]}
{[%emt 00:00:47]} 32. a4 {[%clk 00:26:34]} {[%emt 00:00:21]} Rd8 {[%clk
00:00:57]} {[%emt 00:01:20]} 33. Bb7 {[%clk 00:26:45]} {[%emt 00:00:19]} Rd7
{[%clk 00:00:44]} {[%emt 00:00:43]} 34. Rb1 {[%clk 00:26:08]} {[%emt 00:01:07]}
cxd4 {[%clk 00:00:47]} {[%emt 00:00:28]} 35. a5 {[%clk 00:26:36]} {[%emt
00:00:02]} h5 {[%clk 00:00:35]} {[%emt 00:00:42]} 36. a6 {[%clk 00:26:53]}
{[%emt 00:00:13]} Nd5 {[%clk 00:00:33]} {[%emt 00:00:31]} 37. Bxd5 {[%clk
00:08:07]} {[%emt 00:19:15]} Rxd5 {[%clk 00:00:32]} {[%emt 00:00:31]} 38. a7
{[%clk 00:08:31]} {[%emt 00:00:06]} Ra5 {[%clk 00:00:36]} {[%emt 00:00:26]} 39.
Rb8+ {[%clk 00:08:56]} {[%emt 00:00:05]} Kh7 {[%clk 00:01:02]} {[%emt
00:00:04]} 40. a8=Q {[%clk 00:09:23]} {[%emt 00:00:04]} Rxa8 {[%clk 00:01:17]}
{[%emt 00:00:14]} 41. Rxa8 {[%clk 00:09:52]} {[%emt 00:00:02]} hxg4 {[%clk
00:29:33]} {[%emt 00:02:14]} 42. hxg4 {[%clk 00:40:09]} {[%emt 00:00:12]} Kh6
{[%clk 00:22:58]} {[%emt 00:07:06]} 43. Kg2 {[%clk 00:37:20]} {[%emt 00:03:20]}
f6 {[%clk 00:22:16]} {[%emt 00:01:11]} 44. Kf3 {[%clk 00:36:19]} {[%emt
00:01:31]} Kg5 {[%clk 00:22:18]} {[%emt 00:00:28]} 45. Ra7 {[%clk 00:32:08]}
{[%emt 00:04:41]} g6 {[%clk 00:14:34]} {[%emt 00:08:14]} 46. Re7 {[%clk
00:32:27]} {[%emt 00:00:11]} e5 {[%clk 00:13:31]} {[%emt 00:01:32]} 47. Re6
{[%clk 00:32:38]} {[%emt 00:00:19]} d3 {[%clk 00:12:58]} {[%emt 00:01:03]} 48.
Kg3 {[%clk 00:30:29]} {[%emt 00:02:40]} f5 {[%clk 00:11:06]} {[%emt 00:02:22]}
49. Rxe5 {[%clk 00:30:39]} {[%emt 00:00:20]} 1-0

[Event "The Elitserien 2024/25: round 1 - 3"]
[Site "Scandic Infra City, Kanalvagen 10, Upplands Vasby, Sweden"]
[Date "2024.10.06"]
[Round "3.13"]
[White "Cramling, Pia"]
[Black "Van Hengel, Hugo"]
[Result "1/2-1/2"]
[TimeControl "90 minutes for 40 moves + 30 minutes for the rest of the game + 30 seconds per move from move one."]
[WhiteTitle "GM"]
[BlackTitle "FM"]
[WhiteFideId "1700030"]
[BlackFideId "1008161"]
[WhiteElo "2425"]
[BlackElo "2236"]

1. d4 {[%clk 01:29:37]} {[%emt 00:01:21]} d5 {[%clk 01:30:51]} {[%emt
00:00:10]} 2. c4 {[%clk 01:29:43]} {[%emt 00:00:24]} e6 {[%clk 01:31:06]}
{[%emt 00:00:15]} 3. Nf3 {[%clk 01:29:41]} {[%emt 00:00:32]} c6 {[%clk
01:30:52]} {[%emt 00:00:44]} 4. Nbd2 {[%clk 01:28:14]} {[%emt 00:01:57]} f5
{[%clk 01:29:13]} {[%emt 00:02:09]} 5. g3 {[%clk 01:27:49]} {[%emt 00:00:55]}
Nf6 {[%clk 01:29:30]} {[%emt 00:00:14]} 6. Bg2 {[%clk 01:28:14]} {[%emt
00:00:04]} Be7 {[%clk 01:27:19]} {[%emt 00:02:42]} 7. O-O {[%clk 01:27:21]}
{[%emt 00:01:22]} O-O {[%clk 01:22:13]} {[%emt 00:05:37]} 8. Qc2 {[%clk
01:21:40]} {[%emt 00:06:11]} Ne4 {[%clk 01:11:22]} {[%emt 00:11:20]} 9. Ne5
{[%clk 01:21:37]} {[%emt 00:00:32]} Nd7 {[%clk 01:08:55]} {[%emt 00:02:58]} 10.
Nd3 {[%clk 01:18:50]} {[%emt 00:03:18]} Bf6 {[%clk 01:04:48]} {[%emt 00:04:37]}
11. Nf3 {[%clk 01:18:10]} {[%emt 00:01:08]} g5 {[%clk 00:59:24]} {[%emt
00:05:55]} 12. Nfe5 {[%clk 01:11:04]} {[%emt 00:07:35]} dxc4 {[%clk 00:53:34]}
{[%emt 00:06:22]} 13. Nxd7 {[%clk 01:01:59]} {[%emt 00:09:33]} Qxd7 {[%clk
00:47:00]} {[%emt 00:07:05]} 14. Nc5 {[%clk 01:00:16]} {[%emt 00:02:13]} Nxc5
{[%clk 00:43:35]} {[%emt 00:03:56]} 15. dxc5 {[%clk 01:00:38]} {[%emt
00:00:06]} Qd4 {[%clk 00:43:54]} {[%emt 00:00:12]} 16. Be3 {[%clk 00:56:20]}
{[%emt 00:04:48]} Qxb2 {[%clk 00:43:42]} {[%emt 00:00:43]} 17. Qxc4 {[%clk
00:56:38]} {[%emt 00:00:11]} Qb5 {[%clk 00:40:51]} {[%emt 00:03:22]} 18. Qxb5
{[%clk 00:42:51]} {[%emt 00:14:17]} cxb5 {[%clk 00:41:12]} {[%emt 00:00:08]} 19.
Rab1 {[%clk 00:42:17]} {[%emt 00:01:03]} a6 {[%clk 00:39:55]} {[%emt 00:01:49]}
20. Rfd1 {[%clk 00:41:36]} {[%emt 00:01:09]} Rf7 {[%clk 00:35:39]} {[%emt
00:04:47]} 21. Rd6 {[%clk 00:30:21]} {[%emt 00:11:45]} h6 {[%clk 00:27:02]}
{[%emt 00:09:08]} 22. f4 {[%clk 00:26:09]} {[%emt 00:04:41]} Rc7 {[%clk
00:25:19]} {[%emt 00:02:13]} 23. Rbd1 {[%clk 00:25:15]} {[%emt 00:01:24]} Be7
{[%clk 00:19:03]} {[%emt 00:06:46]} 24. Rd8+ {[%clk 00:18:14]} {[%emt
00:07:31]} Bxd8 {[%clk 00:16:58]} {[%emt 00:02:36]} 25. Rxd8+ {[%clk 00:18:41]}
{[%emt 00:00:02]} Kf7 {[%clk 00:16:59]} {[%emt 00:00:28]} 26. Rh8 {[%clk
00:17:51]} {[%emt 00:01:21]} Kg6 {[%clk 00:16:18]} {[%emt 00:01:12]} 27. Bd4
{[%clk 00:14:43]} {[%emt 00:03:37]} b4 {[%clk 00:14:30]} {[%emt 00:02:19]} 28.
Rg8+ {[%clk 00:14:12]} {[%emt 00:00:59]} Kh7 {[%clk 00:14:49]} {[%emt
00:00:12]} 29. Rh8+ {[%clk 00:14:36]} {[%emt 00:00:06]} Kg6 {[%clk 00:15:15]}
{[%emt 00:00:05]} 30. Rg8+ {[%clk 00:07:43]} {[%emt 00:07:22]} Kh7 {[%clk
00:15:32]} {[%emt 00:00:13]} 31. Rh8+ {[%clk 00:08:05]} {[%emt 00:00:07]} Kg6
{[%clk 00:15:48]} {[%emt 00:00:15]} 32. Rg8+ {[%emt 00:00:42]} 1/2-1/2

[Event "The Elitserien 2024/25: round 1 - 3"]
[Site "Scandic Infra City, Kanalvagen 10, Upplands Vasby, Sweden"]
[Date "2024.10.06"]
[Round "3.14"]
[White "Persson, Andreas"]
[Black "Wernberg, Hugo"]
[Result "1/2-1/2"]
[TimeControl "90 minutes for 40 moves + 30 minutes for the rest of the game + 30 seconds per move from move one."]
[WhiteTitle "CM"]
[BlackTitle "FM"]
[WhiteFideId "1707957"]
[BlackFideId "1737511"]
[WhiteElo "2173"]
[BlackElo "2211"]

1. d4 {[%clk 01:30:54]} {[%emt 00:00:06]} d5 {[%clk 01:30:55]} {[%emt
00:00:06]} 2. Nf3 {[%clk 01:30:58]} {[%emt 00:00:25]} Nf6 {[%clk 01:31:18]}
{[%emt 00:00:08]} 3. g3 {[%clk 01:31:03]} {[%emt 00:00:25]} Bf5 {[%clk
01:31:41]} {[%emt 00:00:06]} 4. Bg2 {[%clk 01:30:49]} {[%emt 00:00:44]} e6
{[%clk 01:32:05]} {[%emt 00:00:06]} 5. c4 {[%clk 01:30:39]} {[%emt 00:00:40]}
c6 {[%clk 01:32:28]} {[%emt 00:00:07]} 6. Nc3 {[%clk 01:30:48]} {[%emt
00:00:21]} Be7 {[%clk 01:31:33]} {[%emt 00:01:25]} 7. Qb3 {[%clk 01:30:12]}
{[%emt 00:01:07]} Qb6 {[%clk 01:30:54]} {[%emt 00:01:08]} 8. c5 {[%clk
01:30:03]} {[%emt 00:00:38]} Qxb3 {[%clk 01:30:50]} {[%emt 00:00:35]} 9. axb3
{[%clk 01:30:27]} {[%emt 00:00:07]} O-O {[%clk 01:29:28]} {[%emt 00:01:52]} 10.
b4 {[%clk 01:29:57]} {[%emt 00:01:00]} a6 {[%clk 01:29:13]} {[%emt 00:00:45]}
11. h3 {[%clk 01:28:03]} {[%emt 00:02:24]} Nfd7 {[%clk 01:26:11]} {[%emt
00:03:31]} 12. g4 {[%clk 01:19:00]} {[%emt 00:09:34]} Bg6 {[%clk 01:25:20]}
{[%emt 00:01:20]} 13. Bf4 {[%clk 01:15:58]} {[%emt 00:03:32]} b6 {[%clk
01:18:27]} {[%emt 00:07:24]} 14. O-O {[%clk 01:03:56]} {[%emt 00:12:32]} Re8
{[%clk 01:11:41]} {[%emt 00:07:15]} 15. e3 {[%clk 00:55:01]} {[%emt 00:09:25]}
f6 {[%clk 01:03:23]} {[%emt 00:08:47]} 16. Bg3 {[%clk 00:51:37]} {[%emt
00:03:55]} Ra7 {[%clk 00:31:22]} {[%emt 00:32:31]} 17. Rfc1 {[%clk 00:48:38]}
{[%emt 00:03:29]} Rb7 {[%clk 00:29:46]} {[%emt 00:02:06]} 18. Na4 {[%clk
00:40:49]} {[%emt 00:08:19]} bxc5 {[%clk 00:22:45]} {[%emt 00:07:30]} 19. bxc5
{[%clk 00:40:27]} {[%emt 00:00:52]} Be4 {[%clk 00:22:44]} {[%emt 00:00:31]} 20.
Ne1 {[%clk 00:38:12]} {[%emt 00:02:47]} Bxg2 {[%clk 00:22:35]} {[%emt
00:00:38]} 21. Kxg2 {[%clk 00:38:10]} {[%emt 00:00:33]} e5 {[%clk 00:21:01]}
{[%emt 00:02:03]} 22. Nd3 {[%clk 00:37:41]} {[%emt 00:00:59]} Bd8 {[%clk
00:19:28]} {[%emt 00:02:03]} 23. Rd1 {[%clk 00:29:27]} {[%emt 00:08:44]} a5
{[%clk 00:16:40]} {[%emt 00:03:17]} 24. Ra3 {[%clk 00:23:26]} {[%emt 00:06:32]}
Na6 {[%clk 00:14:48]} {[%emt 00:02:22]} 25. Kf1 {[%clk 00:21:55]} {[%emt
00:02:01]} Kf7 {[%clk 00:11:09]} {[%emt 00:04:08]} 26. f3 {[%clk 00:19:44]}
{[%emt 00:02:42]} Nb4 {[%clk 00:04:54]} {[%emt 00:06:45]} 27. Nxb4 {[%clk
00:15:42]} {[%emt 00:04:32]} Rxb4 {[%clk 00:05:18]} {[%emt 00:00:05]} 28. Be1
{[%clk 00:15:01]} {[%emt 00:01:12]} Rb7 {[%clk 00:03:56]} {[%emt 00:01:52]} 29.
Rdd3 {[%clk 00:13:34]} {[%emt 00:01:57]} exd4 {[%clk 00:02:40]} {[%emt
00:01:46]} 30. exd4 {[%clk 00:13:24]} {[%emt 00:00:40]} Nf8 {[%clk 00:01:47]}
{[%emt 00:01:23]} 31. Rab3 {[%clk 00:12:30]} {[%emt 00:01:23]} Rbe7 {[%clk
00:01:41]} {[%emt 00:00:36]} 32. Bg3 {[%clk 00:11:23]} {[%emt 00:01:39]} Ng6
{[%clk 00:00:44]} {[%emt 00:01:26]} 33. Nc3 {[%clk 00:10:25]} {[%emt 00:01:28]}
Bc7 {[%clk 00:00:52]} {[%emt 00:00:22]} 34. Kf2 {[%clk 00:06:27]} {[%emt
00:04:28]} Bxg3+ {[%clk 00:00:33]} {[%emt 00:00:49]} 35. Kxg3 {[%clk 00:06:55]}
{[%emt 00:00:02]} Re1 {[%clk 00:00:44]} {[%emt 00:00:18]} 36. Rd1 {[%clk
00:06:13]} {[%emt 00:01:13]} Rxd1 {[%clk 00:00:35]} {[%emt 00:00:39]} 37. Nxd1
{[%clk 00:06:39]} {[%emt 00:00:04]} Re2 {[%clk 00:00:42]} {[%emt 00:00:23]} 38.
Ne3 {[%clk 00:05:58]} {[%emt 00:01:11]} Ne7 {[%clk 00:00:48]} {[%emt 00:00:23]}
39. Nf5 {[%clk 00:05:21]} {[%emt 00:01:07]} Nxf5+ {[%clk 00:00:37]} {[%emt
00:00:42]} 40. gxf5 {[%clk 00:05:47]} {[%emt 00:00:04]} Rd2 {[%clk 00:00:43]}
{[%emt 00:00:24]} 41. Rb6 {[%clk 00:01:26]} {[%emt 00:04:51]} Rxd4 {[%clk
00:30:07]} {[%emt 00:01:06]} 42. Rxc6 {[%clk 00:31:24]} {[%emt 00:00:32]} Rc4
{[%clk 00:26:34]} {[%emt 00:04:02]} 43. Rc7+ {[%clk 00:31:14]} {[%emt
00:00:40]} Ke8 {[%clk 00:26:09]} {[%emt 00:00:55]} 44. c6 {[%clk 00:30:28]}
{[%emt 00:01:16]} a4 {[%clk 00:24:20]} {[%emt 00:02:20]} 45. Rd7 {[%clk
00:24:37]} {[%emt 00:06:21]} Rxc6 {[%clk 00:23:50]} {[%emt 00:00:59]} 46. Rxd5
{[%clk 00:25:02]} {[%emt 00:00:06]} Rb6 {[%clk 00:23:05]} {[%emt 00:01:15]}
1/2-1/2

[Event "The Elitserien 2024/25: round 1 - 3"]
[Site "Scandic Infra City, Kanalvagen 10, Upplands Vasby, Sweden"]
[Date "2024.10.06"]
[Round "3.15"]
[White "Wedberg, Tom"]
[Black "Ostling, Hakan"]
[Result "1/2-1/2"]
[TimeControl "90 minutes for 40 moves + 30 minutes for the rest of the game + 30 seconds per move from move one."]
[WhiteTitle "GM"]
[WhiteFideId "1700073"]
[BlackFideId "1708635"]
[WhiteElo "2373"]
[BlackElo "2138"]

1. e4 {[%clk 01:30:58]} {[%emt 00:00:01]} g6 {[%clk 01:30:35]} {[%emt
00:00:25]} 2. d4 {[%clk 01:30:27]} {[%emt 00:01:01]} Bg7 {[%clk 01:30:43]}
{[%emt 00:00:23]} 3. Nc3 {[%clk 01:30:29]} {[%emt 00:00:27]} d6 {[%clk
01:30:49]} {[%emt 00:00:24]} 4. Nf3 {[%clk 01:27:07]} {[%emt 00:03:52]} a6
{[%emt 00:02:46]} 5. a4 {[%clk 01:20:05]} {[%emt 00:07:18]} b6 {[%clk
01:28:04]} {[%emt 00:01:13]} 6. Be3 {[%clk 01:14:45]} {[%emt 00:05:50]} Bb7
{[%clk 01:26:13]} {[%emt 00:02:19]} 7. Qd2 {[%clk 01:12:43]} {[%emt 00:02:34]}
Nd7 {[%clk 01:25:31]} {[%emt 00:01:12]} 8. Bd3 {[%clk 01:11:33]} {[%emt
00:01:39]} e6 {[%clk 01:23:56]} {[%emt 00:02:06]} 9. h3 {[%clk 01:10:24]}
{[%emt 00:01:39]} h6 {[%clk 01:21:12]} {[%emt 00:03:14]} 10. Ne2 {[%clk
01:06:11]} {[%emt 00:04:43]} Ngf6 {[%clk 01:14:50]} {[%emt 00:06:53]} 11. Ng3
{[%clk 01:05:16]} {[%emt 00:01:24]} c5 {[%clk 01:07:14]} {[%emt 00:08:07]} 12.
c3 {[%clk 01:04:30]} {[%emt 00:01:15]} h5 {[%clk 01:04:47]} {[%emt 00:02:57]}
13. Bg5 {[%clk 01:02:20]} {[%emt 00:02:40]} Qc7 {[%clk 01:03:26]} {[%emt
00:01:51]} 14. Qe2 {[%clk 01:00:05]} {[%emt 00:02:45]} e5 {[%clk 00:58:04]}
{[%emt 00:05:52]} 15. d5 {[%clk 00:57:19]} {[%emt 00:03:16]} Nf8 {[%clk
00:55:04]} {[%emt 00:03:30]} 16. O-O {[%clk 00:54:15]} {[%emt 00:03:34]} N8h7
{[%clk 00:54:46]} {[%emt 00:00:49]} 17. Bd2 {[%clk 00:54:08]} {[%emt 00:00:36]}
O-O {[%clk 00:55:06]} {[%emt 00:00:08]} 18. Rfb1 {[%clk 00:43:33]} {[%emt
00:11:07]} Nd7 {[%clk 00:48:44]} {[%emt 00:06:52]} 19. b4 {[%clk 00:43:00]}
{[%emt 00:01:03]} Rfc8 {[%clk 00:46:17]} {[%emt 00:02:57]} 20. Nf1 {[%clk
00:38:44]} {[%emt 00:04:46]} c4 {[%clk 00:46:32]} {[%emt 00:00:16]} 21. Bc2
{[%clk 00:39:09]} {[%emt 00:00:04]} b5 {[%clk 00:45:07]} {[%emt 00:01:55]} 22.
Ra3 {[%clk 00:37:19]} {[%emt 00:02:20]} Rf8 {[%clk 00:43:21]} {[%emt 00:02:16]}
23. Ne3 {[%clk 00:34:41]} {[%emt 00:03:08]} Nb6 {[%clk 00:39:11]} {[%emt
00:04:39]} 24. axb5 {[%clk 00:31:18]} {[%emt 00:03:54]} axb5 {[%clk 00:39:14]}
{[%emt 00:00:28]} 25. Rba1 {[%clk 00:28:39]} {[%emt 00:03:08]} Qd8 {[%emt
00:03:12]} 1/2-1/2